Cogmind - Beta 10.2 @@@ ROGUE MODE // 2021.08.04 @ 20:04:24 Player: BGog Result: Destroyed by Y-45 Defender with Beam Rifle Performance ------------- Evolutions (1) 500 Regions Visited (3) 600 Robots Destroyed (13) 65 Value Destroyed (290) 290 Prototype IDs (0) 0 Alien Tech Used (0) 0 Bonus (0) 0 TOTAL SCORE: 1455 Bonus ------- None Cogmind --------- Core Integrity 0/400 Matter 39/300 Energy 100/100 System Corruption 0% Temperature Cool (9) Movement Core (450) Ox8 Location -9/Materials Parts ------- > --- POWER (1) -------- (None) > --- PROPULSION (4) --- (None) > --- UTILITY (2) ------ Medium Storage Unit Large Storage Unit > --- WEAPON (2) ------- Mace > --- INVENTORY (14) --- Light Ion Engine Sensor Array Signal Interpreter Advanced Terrain Scanner Advanced Terrain Scanner Particle Charger Medium Armor Plating Advanced Beam Cannon Shock Bomb Launcher Rocket Launcher Peak State ------------ > --- POWER ------------ Ion Engine > --- PROPULSION ------- Improved Treads Improved Treads Improved Treads Wheel > --- UTILITY ---------- Large Storage Unit Advanced Terrain Scanner > --- WEAPON ----------- Assault Rifle Mining Laser > --- INVENTORY -------- Light Ion Engine Medium Storage Unit Sensor Array Signal Interpreter Signal Interpreter Advanced Terrain Scanner Particle Charger Shock Bomb Launcher Grenade Launcher Mace [Rating: 15] Favorites ----------- Power Ion Engine Engine Ion Engine Propulsion Wheel Treads Improved Treads Leg Aluminum Leg Wheel Wheel Utility Large Storage Unit Device Advanced Terrain Scanner Storage Large Storage Unit Weapon Assault Rifle Energy Gun EM Pulse Gun Ballistic Gun Assault Rifle Launcher Grenade Launcher Special Weapon Mining Laser Impact Weapon Mace Build | -11 -10 -10 -9 ------- Run | Scr Mat Min Mat Slots Evolved 2 | . . . 2 Power . | . . . . Propulsion 2 | . . . 2 Utility . | . . . . Weapon . | . . . . Parts Attached 36 | . 4 18 14 Power 1 | . . 1 . Engine 1 | . . 1 . Core . | . . . . Reactor . | . . . . Propulsion 20 | . 2 12 6 Treads 12 | . . 6 6 Leg . | . . . . Wheel 8 | . 2 6 . Hover . | . . . . Flight . | . . . . Utility 3 | . 1 . 2 Device 1 | . . . 1 Storage 2 | . 1 . 1 Processor . | . . . . Hackware . | . . . . Protection . | . . . . Artifact . | . . . . Weapon 12 | . 1 5 6 Energy Gun . | . . . . Energy Cannon . | . . . . Ballistic Gun 5 | . 1 2 2 Ballistic Cannon . | . . . . Launcher 4 | . . 2 2 Special Weapon 2 | . . 1 1 Impact Weapon 1 | . . . 1 Slashing Weapon . | . . . . Piercing Weapon . | . . . . Special Melee Weapon . | . . . . Unidentified Prototypes . | . . . . Parts Lost 10 | . . 2 8 Power 1 | . . . 1 Propulsion 4 | . . . 4 Utility . | . . . . Weapon 5 | . . 2 3 Highest Loss Streak 3 | . . 1 3 Average Slot Usage (%) 81 | . 85 78 85 Engine 12 | . 14 14 8 Treads 11 | . . 4 24 Leg 1 | . 13 . . Wheel 18 | . 14 23 11 Device 1 | . . . 3 Storage 15 | . 14 14 17 Energy Gun 3 | . 14 3 . Ballistic Gun 13 | . 14 16 9 Special Weapon 3 | . . . 7 Naked Turns . | . . . . Heaviest Build 33 | 12 25 25 33 Greatest Support 69 | 20 26 40 69 Greatest Overweight (x) 8 | . . . 8 Average Overweight (x) . | . . . . Largest Inventory Capacity 14 | . 10 10 14 Average Capacity 10 | . 6 10 12 Most Carried 11 | . 7 10 11 Average Carried 9 | . 5 8 10 Final Capacity 14 | 6 10 10 14 Final Carried 10 | 6 7 10 10 Class Distribution -------------------- 100% | Mutant Dominant Class ---------------- Mutant | -10/Materials Mutant | -10/Mines Mutant | -9/Materials Resources | -11 -10 -10 -9 ----------- Run | Scr Mat Min Mat Matter Collected 485 | 164 36 233 52 Remotely . | . . . . Salvage Created 268 | . . 232 36 Parts 21 | . . 17 4 Haulers Intercepted . | . . . . Recyclers Shooed 1 | . . . 1 Parts Field Recycled . | . . . . Retrieved Matter . | . . . . Parts Self-Destructed . | . . . . Prevented . | . . . . Kills | -11 -10 -10 -9 ------- Run | Scr Mat Min Mat Combat Hostiles Destroyed 11 | . . 10 1 Guns 7 | . . 6 1 AOE 4 | . . 4 . Classes Destroyed 5 | . . 2 3 Tunneler 1 | . . . 1 Watcher 1 | . . . 1 Swarmer 6 | . . 6 . Grunt 4 | . . 4 . Sentry 1 | . . . 1 Best Kill Streak 3 | . . 3 2 Combat Bots Only 3 | . . 3 1 Max Kills in Single Turn 2 | . . 2 1 Gunslinging . | . . . . Exploded 2 | . . 2 . Melee . | . . . . Uniques/NPCs Destroyed . | . . . . Combat | -11 -10 -10 -9 -------- Run | Scr Mat Min Mat Damage Taken 1953 | . . 567 1386 Core 479 | . . 66 413 Absorbed by Shields . | . . . . Core Remaining (%) 86 | 100 . 73 . Volleys Fired 60 | . 2 32 26 Largest 2 | . 2 2 2 Hottest 120 | . 60 60 120 Shots Fired 88 | . 4 51 33 Gun 65 | . 4 45 16 Cannon . | . . . . Launcher 10 | . . 6 4 Special 13 | . . . 13 Kinetic 53 | . 2 35 16 Thermal 13 | . . . 13 Explosive 10 | . . 6 4 Electromagnetic 12 | . 2 10 . Robot Hit Streak 9 | . . 9 7 Robot Miss Streak 7 | . 4 5 7 Penetration Max . | . . . . Secondary Targets . | . . . . Shots Hit Robots 47 | . . 28 19 Core Hits 24 | . . 15 9 Critical Hits . | . . . . Critical Kills . | . . . . Critical Parts Destroyed . | . . . . Melee Attacks 4 | . . . 4 Impact 4 | . . . 4 Slashing . | . . . . Piercing . | . . . . Sneak Attacks . | . . . . Combat Hostiles . | . . . . Follow-up Attacks . | . . . . Damage Inflicted 1118 | . . 525 593 Guns 390 | . . 254 136 Cannons . | . . . . Explosions 484 | . . 271 213 Melee 70 | . . . 70 Ramming 6 | . . . 6 Kinetic 343 | . . 207 136 Thermal 168 | . . . 168 Explosive 484 | . . 271 213 Electromagnetic 47 | . . 47 . Impact 70 | . . . 70 Slashing . | . . . . Piercing . | . . . . Highest Corruption . | . . . . Average Corruption . | . . . . Corruption Purged . | . . . . Overload Shots . | . . . . Overflow Damage 10 | . . 6 4 Projectiles . | . . . . Explosions 10 | . . 6 4 Melee . | . . . . Knockbacks . | . . . . Impact . | . . . . Kinetic . | . . . . Secondary . | . . . . Self-Inflicted Damage 76 | . . 29 47 Shots 4 | . . 1 3 Rammed 1 | . . . 1 Targets Rammed 1 | . . . 1 Kicked . | . . . . Crushed . | . . . . Highest Temperature 118 | . 20 10 118 Average Temperature 26 | . 15 7 29 Received Heat Transfer 798 | . . 177 621 Siege Activations . | . . . . Robots Corrupted . | . . . . Combat Hostiles . | . . . . Parts Fried . | . . . . Impact Corruptions . | . . . . Robots Melted . | . . . . Combat Hostiles . | . . . . Parts Melted . | . . . . Heat Transferred 350 | . . . 350 Parts Sabotaged . | . . . . Parts Stolen . | . . . . Parts Stripped . | . . . . Power Chain Reactions . | . . . . Missiles Intercepted . | . . . . Alert | -11 -10 -10 -9 ------- Run | Scr Mat Min Mat Peak Influence 196 | . 30 196 72 Initial 11 | . . 11 . Average 52 | . 22 70 34 Maximum Alert Level . | . . . . Low Security (%) 100 | . 100 100 100 Level 1 . | . . . . Level 2 . | . . . . Level 3 . | . . . . Level 4 . | . . . . Level 5 . | . . . . High Security . | . . . . Max Security . | . . . . Squads Dispatched . | . . . . Investigation . | . . . . Extermination . | . . . . Reinforcement . | . . . . Assault . | . . . . Garrison . | . . . . Intercept . | . . . . Construction Impeded . | . . . . Haulers Reinforced . | . . . . Stealth | -11 -10 -10 -9 --------- Run | Scr Mat Min Mat Distress Signals . | . . . . Communications Jammed . | . . . . Distress Signals . | . . . . Times Spotted 22 | . 2 10 10 Peak Tracking Total 8 | . 2 3 8 Tactical Retreats 2 | . . . 2 Traps | -11 -10 -10 -9 ------- Run | Scr Mat Min Mat Traps Triggered . | . . . . Indirectly . | . . . . Trap Hack Attempts . | . . . . Triggered . | . . . . Disarmed . | . . . . Reprogrammed . | . . . . Reused . | . . . . Traps Extracted . | . . . . Installed . | . . . . Triggered . | . . . . Machines | -11 -10 -10 -9 ---------- Run | Scr Mat Min Mat Machines Disabled . | . . . . Max in Single Turn . | . . . . Machines Sabotaged . | . . . . Garrisons Compromised . | . . . . Overloaded Fab Kills . | . . . . Fab Network Shutdowns . | . . . . Hacking | -11 -10 -10 -9 --------- Run | Scr Mat Min Mat Machines Accessed 1 | . 1 . . Terminals 1 | . 1 . . Fabricators . | . . . . Repair Stations . | . . . . Recycling Units . | . . . . Scanalyzers . | . . . . Garrison Access . | . . . . Total Hacks 1 | . 1 . . Successful 1 | . 1 . . Failed . | . . . . Catastrophic . | . . . . Database Lockouts . | . . . . Manual . | . . . . Terminals 1 | . 1 . . Fabricators . | . . . . Repair Stations . | . . . . Recycling Units . | . . . . Scanalyzers . | . . . . Garrison Access . | . . . . Terminal Hacks 1 | . 1 . . Robot Analysis 1 | . 1 . . Fabricator Hacks . | . . . . Repair Station Hacks . | . . . . Recycling Unit Hacks . | . . . . Scanalyzer . | . . . . Garrison Access Hacks . | . . . . Unauthorized Hacks . | . . . . Terminals . | . . . . Fabricators . | . . . . Repair Stations . | . . . . Recycling Units . | . . . . Scanalyzers . | . . . . Garrison Access . | . . . . Data Cores Recovered . | . . . . Used . | . . . . Hacking Detections . | . . . . Full Trace Events . | . . . . Feedback Events . | . . . . Feedback Blocked . | . . . . Robot Schematics Acquired . | . . . . Robots Built . | . . . . Matter . | . . . . Time . | . . . . Total Robot Build Rating . | . . . . Part Schematics Acquired . | . . . . Parts Built . | . . . . Matter . | . . . . Time . | . . . . Total Part Build Rating . | . . . . Parts Repaired . | . . . . Time . | . . . . Parts Recycled . | . . . . Recycled Matter . | . . . . Retrieved Matter . | . . . . Retrieved Components . | . . . . Parts Scanalyzed . | . . . . Part Schematics Acquired . | . . . . Parts Damaged . | . . . . Bothacking | -11 -10 -10 -9 ------------ Run | Scr Mat Min Mat Used RIF Installer . | . . . . Robots Hacked . | . . . . Non-combat . | . . . . Combat . | . . . . Robot Hacks Applied . | . . . . Relay Couplers Released . | . . . . Robots Rewired . | . . . . Allies Hacked . | . . . . Hacks Repelled . | . . . . Allies | -11 -10 -10 -9 -------- Run | Scr Mat Min Mat Total Allies 1 | . . 1 . Largest Group 1 | . . 1 . Highest-Rated Group 31 | . . 31 . Highest-Rated Ally 31 | . . 31 . Total Orders . | . . . . Ally Attacks . | . . . . Total Damage . | . . . . Kills . | . . . . Allies Corrupted . | . . . . Allies Melted . | . . . . Intel | -11 -10 -10 -9 ------- Run | Scr Mat Min Mat Robot Analysis Total 1 | . 1 . . Derelict Logs Recovered 1 | . . 1 . Drone Launches . | . . . . Drone Recoveries . | . . . . Exploration | -11 -10 -10 -9 ------------- Run | Scr Mat Min Mat Turns Passed 1657 | . 189 868 600 Spaces Moved 1293 | 1 169 793 330 Core 8 | . . . 8 Treads 211 | . . 20 191 Legs 76 | 1 75 . . Wheels 998 | . 94 773 131 Hover . | . . . . Flight . | . . . . Fastest Speed 90 | 120 90 90 90 Average Speed 105 | 120 103 91 140 Slowest Speed 450 | 120 120 160 450 Overloaded Moves . | . . . . Propulsion Burnouts . | . . . . Robots Hopped . | . . . . Cave-ins Triggered . | . . . . Exploration Rate (%) 38 | 2 28 97 28 Regions Visited 3 Branch Regions 1 Pre-discovered Areas . | . . . . Known Exits Taken . | . . . . Unknown Exits Taken 3 | 1 1 1 . Scrap Searched 1 | . . 1 . Spaces Dug . | . . . . Terrain Destroyed 80 | . . 45 35 Melee . | . . . . Projectile 2 | . . . 2 AOE 78 | . . 45 33 Terrain Rammed . | . . . . Walls Destroyed . | . . . . Machines Disabled . | . . . . Actions | -11 -10 -10 -9 --------- Run | Scr Mat Min Mat Total 1461 | . 179 880 402 Wait 31 | . . 24 7 Move 1290 | . 168 792 330 Hop . | . . . . Pick Up 21 | . 3 7 11 Fast Attach 4 | . . 1 3 Attach 11 | . 2 3 6 Detach 2 | . . 2 . Swap 21 | . 2 14 5 Drop 16 | . 2 5 9 Fire 60 | . 2 32 26 Melee 4 | . . . 4 Ram . | . . . . Kick . | . . . . Crush 1 | . . . 1 Escape Stasis . | . . . . Rewire . | . . . . Trap . | . . . . Miscellaneous . | . . . . Route ------- -11/Scrapyard -10/Materials -10/Mines (discovered 3 exits: [*Mat x2] / Exi) -9/Materials (discovered 1 exit: [*Min]) History --------- Turn | Location | Event 1 | -11/Scrapyard | Discovered new exit (range 0) 1 | -11/Scrapyard | Entered Materials 135 | -10/Materials | Discovered new exit (range 16) 190 | -10/Materials | Entered Mines 315 | -10/Mines | Build established: Mutant 351 | -10/Mines | Found a hidden stash of uninstalled traps 793 | -10/Mines | Discovered new exit (range 10) 897 | -10/Mines | Identified exit to Exiles 901 | -10/Mines | Discovered new exit (range 3) 985 | -10/Mines | Received a Mining Laser from a helpful Derelict 1058 | -10/Mines | Entered Materials 1058 | -9/Materials | Evolved 2 slots: Propulsion x2 1095 | -9/Materials | Discovered new exit (range 12) 1489 | -9/Materials | Lost 3 parts (1n2w) 1620 | -9/Materials | Core integrity fell below 50% 1641 | -9/Materials | Core integrity fell below 20% 1652 | -9/Materials | Lost 3 parts (2n1w) 1658 | -9/Materials | Destroyed by Y-45 Defender with Beam Rifle Last Messages --------------- 01421_ Destroyed Heat Sink. 01429_ Destroyed Sml. Laser. 01432_ Grenade Launcher destroyed. 01438_ U-05 Engineer lays Concrete. 01454_ Wheel destroyed. 01458_ Mining Laser destroyed. 01466_ U-05 Engineer lays Concrete. 01499_ Acquired Prototype Energy Cannon. 01530_ Ion Engine destroyed. 01542_ Imp. Treads destroyed. 01557_ R-06 Scavenger destroyed. 01557_ K-01 Serf collects debris. 01567_ Slammed into R-06 Scavenger. 01606_ K-01 Serf destroyed. 01613_ Acquired 16 matter. 01614_ Assault Rifle destroyed. 01614_ Imp. Treads destroyed. 01635_ G-34 Mercenary destroyed. 01638_ R-06 Scavenger destroyed. 01642_ G-47 Trooper destroyed. Map ----- +----------------------------------------------------+ | ?????????????????????## #??????## ########???? | | ?????????????????????# ####### #?????????? | | ?????????????????????# #?????????? | | ?????????????????????# #?????????? | | ?????????????????????# #?????????? | | ???????#####?????????# ###/### #?????????? | | ?????#?# ?????????####???# #######?????????? | | ?????? ? ????????????????#% #???????????????? | | ??????? ????????????????#/! #???????????????? | | ???????? ????????????????#== #???????????????? | | ????????? ????????????????# #???????????????? | | ?????????# #????????????????# #???????????????? | | ?????????# ########?????????# #???????????????? | | ?????????# ########### #???????????????? | | ?????????# / #???????????????? | | ?????????# ################???????????????? | | ?????????# #??????????????????????????????? | | ?????????# #### ##??????????????????????????????? | | ?????????# #??# #???????????????????????????????? | | ?????????# #??# #???????????????????????????????? | | ?????????# #??# #???????????????????????????????? | | ????######/#### ##??????????????????????????????? | | ????# # = #######+#########+#????????????? | | ????# """"" + %[%=Yg ?????????? | | ????# """"" # T !=*gY ?????????? | | ????# """"" # #######@#######????????????????? | | ????# ######???? ?????????????????????? | | ????# """"" #????????# #???????????????????? | | ????#? """"" #????????# #???????????????????? | | ???????""""" #????????# #???????????????????? | | ???????? #????????# #???????????????????? | | ??????????###?????????# #???????????????????? | | ???????????????????????#######???????????????????? | | | | | | | | | | | | | | | | | | | | | | | | | | | | | | | | | | | +----------------------------------------------------+ Best States ------------- Heat Dissipation 28 Energy Generation 10 Energy Capacity 250 Matter Stores 300 Matter Capacity 300 Sight Range 16 Terrain Scan Range 20 Terrain Scan Density 10 Evasion (%) 42 Recoil Reduction 3 Item Schematics ----------------- None Robot Schematics ------------------ None Fabricated ------------ Nothing Alien Tech Used ----------------- None Achievements -------------- None Challenges ------------ None Game ------ Seed MinesnifferTeslaFlamer Manual? 0 Play Time 00:45:28 Cumulative 7.5 hours Start 2021.08.04 @ 19:14:00 End 2021.08.04 @ 20:04:24 Sessions 1 Manual Loads 0 Difficulty Rogue Special Mode None Game No. 4 Rogue 4 Adventurer 0 Explorer 0 Win Type - Total 0 Types 0/0/0/0/0/0/0/0/0 Lore% 1 Gallery% 9 Achievement% 8 Wizard Run 0 Options --------- ASCII 0 Keyboard 0 Movement Numpad Keybinds 0 Fullscreen 1 Font 24/Smallcaps Map View 113x50 Tactical HUD 1 Map Filters NONE Filters NONE Steam 1 RUN: e557028e-98d6-419a-9133-6b78693a67c5